bitfinex/quotes_SOLUSD_20240711
["timestamp","ask_amount","ask_price","bid_price","bid_amount"]
[1720719983393,7.2068,138.76,138.7,25.2339]
[1720719983784,7.2072,138.75,138.7,25.2339]
[1720719985188,7.2065,138.77,138.71,7.2088]
[1720719985380,7.2065,138.77,138.72,1.44151378]
[1720719986290,7.2066,138.76,138.72,1.44151378]
[1720719987806,7.2062,138.77,138.72,7.2086]
[1720719988687,7.2067,138.76,138.71,7.2091]
[1720719989492,7.2063,138.77,138.72,7.2087]
[1720719989794,7.2058,138.78,138.72,7.2087]
[1720719989973,7.2058,138.78,138.73,7.2082]
[1720719990169,7.52899244,138.79,138.73,18.0203]
[1720719990502,7.2052,138.79,138.74,7.2073]
[1720719990797,7.2056,138.78,138.73,25.2283]
[1720719991367,7.2056,138.78,138.73,18.0203]
[1720719991585,7.2061,138.77,138.73,18.0203]
[1720719991786,7.2061,138.77,138.72,28.6696]
[1720719993771,7.2058,138.78,138.72,28.6696]
[1720719993975,7.2058,138.78,138.73,7.2082]
[1720719994175,7.2053,138.79,138.73,25.2287]
[1720719994670,7.2058,138.78,138.73,18.0205]
[1720719995595,7.2062,138.77,138.71,7.209]
[1720719995980,7.2066,138.76,138.71,7.209]
[1720719996887,18.0146,138.78,138.7,18.0232]
[1720719997086,7.2077,138.74,138.7,18.0232]
[1720719997288,45.17,138.77,138.7,18.0232]
[1720719997490,7.2078,138.74,138.69,7.21]
[1720719998020,15.097,138.75,138.65,16.1524]
[1720719998198,65.17,138.74,138.66,7.2114]
[1720719998376,7.2088,138.72,138.66,7.2114]
[1720719998572,0.17,138.73,138.65,34.1822]
[1720719998573,7.2093,138.71,138.65,41.3944]
[1720719998975,7.2093,138.71,138.66,7.2118]
[1720719999173,65.17,138.74,138.64,6.3075]
[1720719999477,7.2099,138.7,138.65,7.2123]
[1720719999681,7.2099,138.7,138.64,13.5202]
[1720719999992,7.2099,138.7,138.64,31.5517]
[1720720000311,18.0219,138.72,138.63,0.8221755]
[1720720000483,7.2103,138.69,138.63,8.0355755]
[1720720000801,7.2103,138.69,138.64,7.2127]
[1720720001202,7.2103,138.69,138.63,8.0355755]
[1720720001591,22.577,138.68,138.63,8.0355755]
[1720720001783,22.577,138.68,138.63,0.8221755]
[1720720003105,15.3661,138.68,138.63,0.8221755]
[1720720003281,0.17,138.67,138.63,0.8221755]
[1720720003583,7.212,138.66,138.63,0.8221755]
[1720720004004,7.3815,138.67,138.63,0.8221755]
[1720720004902,22.577,138.68,138.63,0.8221755]
[1720720005297,7.2114,138.67,138.63,0.8221755]
[1720720005705,7.2122,138.66,138.63,0.8221755]
[1720720005886,7.2115,138.67,138.63,0.8221755]
[1720720006200,24.6407,138.7,138.63,8.0351755]
[1720720006201,7.2103,138.69,138.63,8.0351755]
[1720720007403,7.53289508,138.71,138.67,7.2113]
[1720720007597,7.2083,138.73,138.67,7.2111]
[1720720007903,7.2088,138.72,138.67,7.2111]
[1720720008203,14.73932411,138.73,138.68,7.2107]
[1720720008404,7.53102411,138.73,138.69,7.2102]
[1720720008614,7.2072,138.75,138.7,7.2097]
[1720720008987,7.2079,138.74,138.69,7.2102]
[1720720009314,23.5936,138.76,138.7,7.2095]
[1720720009808,7.2072,138.75,138.7,7.2095]
[1720720010015,23.5936,138.76,138.7,7.2095]
[1720720010306,7.52972258,138.77,138.73,7.208]
[1720720010605,23.4016,138.79,138.74,0.48638065]
[1720720010809,7.2057,138.78,138.74,0.48638065]
[1720720011018,30.92875102,138.79,138.73,7.208]
[1720720011392,7.2057,138.78,138.73,7.208]
[1720720011606,14.73265102,138.79,138.74,7.2076]
[1720720011813,7.2053,138.79,138.74,7.2076]
[1720720012886,7.52636068,138.81,138.76,7.2061]
[1720720013229,7.2032,138.83,138.77,7.206]
[1720720013423,7.2036,138.82,138.76,25.2227]
[1720720013595,7.2041,138.81,138.76,25.2227]
[1720720014087,7.2037,138.82,138.76,25.2227]
[1720720014693,7.203,138.83,138.77,7.2061]
[1720720014894,7.203,138.83,138.76,18.0162]
[1720720015094,7.2046,138.8,138.74,29.8118]
[1720720015510,7.2051,138.79,138.74,29.8118]
[1720720015823,7.2051,138.79,138.73,25.228]
[1720720016814,7.2045,138.81,138.74,7.2077]
[1720720017000,7.2047,138.8,138.74,7.2077]
[1720720017206,0.34,138.82,138.74,7.2077]
[1720720017515,7.5441,138.81,138.75,7.2071]
[1720720017694,7.2041,138.81,138.75,7.2071]
[1720720018412,7.2041,138.81,138.76,7.2065]
[1720720019810,7.2037,138.82,138.76,7.2065]
[1720720020211,7.2042,138.81,138.76,7.2065]
[1720720020394,7.2042,138.81,138.75,25.2247]
[1720720020715,7.2047,138.8,138.75,25.2247]
[1720720020918,7.2042,138.81,138.76,7.2066]
[1720720021210,7.2037,138.82,138.76,7.2066]
[1720720021385,20.0,138.83,138.77,18.0151]
[1720720021585,20.0,138.84,138.77,18.0151]
[1720720022118,7.2029,138.84,138.79,18.0122]
[1720720022411,7.2025,138.84,138.79,25.2169]
[1720720022910,7.2027,138.84,138.78,7.2056]
[1720720023109,7.2027,138.84,138.79,1.44062196]
[1720720023416,7.2027,138.84,138.79,7.205]
[1720720023829,7.2027,138.84,138.78,25.2192]
[1720720024119,7.2032,138.83,138.78,25.2192]
[1720720025115,7.2032,138.83,138.78,18.0137]
[1720720025426,23.0806,138.86,138.8,7.2042]
[1720720025801,7.2021,138.85,138.8,7.2042]
[1720720026697,7.2027,138.84,138.79,7.2049]
[1720720028097,7.2031,138.83,138.78,25.2193]
[1720720028297,7.2027,138.84,138.78,25.2193]
[1720720028512,52.543,138.83,138.78,25.2193]
[1720720028714,0.17,138.83,138.78,18.0137]
[1720720028919,7.372,138.85,138.78,18.0137]
[1720720029318,7.2025,138.84,138.78,18.0137]
[1720720029704,7.2025,138.84,138.79,7.2048]
[1720720029915,0.17,138.83,138.77,21.9539]
[1720720030215,7.2037,138.82,138.77,21.9539]
[1720720030606,0.17,138.84,138.78,7.2055]
[1720720030607,7.2032,138.83,138.78,7.2055]
[1720720031519,6.9086,138.82,138.77,47.1749]
[1720720033815,7.2066,138.76,138.71,18.022]
[1720720034409,7.2066,138.76,138.71,25.2311]
[1720720035320,7.2072,138.75,138.71,18.022]
[1720720035727,7.2077,138.74,138.7,21.3564]
[1720720036020,14.73974611,138.75,138.69,7.2101]
[1720720036197,14.73974611,138.75,138.72,7.2087]
[1720720036198,7.53234611,138.75,138.72,7.2087]
[1720720036613,23.0076,138.77,138.72,7.2087]
[1720720037001,14.90724541,138.78,138.71,18.0219]
[1720720037202,14.73724541,138.78,138.73,7.2081]
[1720720037408,7.2061,138.77,138.72,7.2085]
[1720720037615,7.2072,138.75,138.71,18.0219]
[1720720038499,7.2069,138.76,138.71,18.0219]
[1720720038702,7.2063,138.77,138.72,7.2086]
[1720720038897,14.73724541,138.78,138.73,7.208]
[1720720040501,7.2067,138.76,138.71,25.231]
[1720720041716,7.2063,138.77,138.71,25.231]
[1720720042029,7.53144541,138.78,138.71,25.231]
[1720720042030,7.53144541,138.78,138.71,39.9393]
[1720720042823,7.2064,138.77,138.72,7.2084]
[1720720043041,7.53144541,138.78,138.71,39.9393]
[1720720043333,7.2067,138.76,138.71,47.1482]
[1720720044022,7.2072,138.75,138.71,39.9393]
[1720720045030,7.2072,138.75,138.68,27.96]
[1720720045031,7.2077,138.74,138.69,7.2101]
[1720720045410,7.2073,138.75,138.7,7.2097]
[1720720046305,7.2068,138.76,138.71,7.2092]
[1720720046705,7.2072,138.75,138.7,25.234]
[1720720046921,7.2077,138.74,138.7,25.234]
[1720720047311,7.2073,138.75,138.7,25.234]
[1720720048622,7.2073,138.75,138.71,7.2092]
[1720720048928,7.2063,138.77,138.72,7.2087]
[1720720049230,14.73724541,138.78,138.73,7.2081]
[1720720049527,7.2066,138.76,138.71,25.2308]
[1720720049919,7.2066,138.76,138.72,7.2087]
[1720720050109,7.2062,138.77,138.72,7.2087]
[1720720051822,7.53144541,138.78,138.71,18.0219]
[1720720052008,0.34,138.77,138.71,18.0219]
[1720720052404,7.2075,138.75,138.71,18.0219]
[1720720053007,14.73940329,138.76,138.71,25.231]
[1720720053526,7.53260329,138.76,138.72,7.2087]
[1720720053712,7.2064,138.77,138.73,7.2082]
[1720720053911,7.206,138.78,138.73,7.2082]
[1720720054128,7.2061,138.77,138.72,7.2085]
[1720720055230,7.2058,138.78,138.73,7.2081]
[1720720055429,7.2058,138.78,138.73,6.2081]
[1720720056011,7.53174872,138.79,138.75,7.2071]
[1720720056215,7.53174872,138.79,138.76,7.2064]
[1720720056435,19.22756864,138.84,138.77,7.2061]
[1720720056613,16.2534,138.84,138.78,7.2055]
[1720720056938,7.203,138.83,138.78,7.2055]
[1720720057122,7.2036,138.82,138.77,25.2214]
[1720720057635,7.2045,138.81,138.75,27.96]
[1720720057809,7.2045,138.81,138.75,7.2068]
[1720720058228,7.2036,138.82,138.76,18.0164]
[1720720058432,7.2036,138.82,138.76,25.2229]
[1720720059109,7.2041,138.81,138.76,25.2229]
[1720720059305,7.52819263,138.85,138.79,7.205]
[1720720059526,7.2028,138.84,138.79,7.205]
[1720720061310,7.2031,138.83,138.78,25.2193]
[1720720061513,7.2036,138.82,138.77,7.206]
[1720720062431,7.2031,138.83,138.78,7.2054]
[1720720062605,7.52819263,138.85,138.78,7.2054]
[1720720062808,7.2028,138.84,138.79,7.205]
[1720720065235,14.73039263,138.85,138.8,7.2045]
[1720720065548,7.2022,138.85,138.8,7.2045]
[1720720065910,16.5148,138.87,138.8,7.2045]
[1720720066539,7.2023,138.85,138.8,7.2045]
[1720720067419,7.2026,138.84,138.79,40.3712]
[1720720074144,16.5148,138.87,138.75,15.7813]
[1720720074330,27.96,138.85,138.75,15.7813]
[1720720074528,7.2042,138.81,138.76,7.2063]
[1720720074725,7.2037,138.82,138.78,13.99]
[1720720074935,20.0,138.86,138.78,18.0139]
[1720720075136,0.17,138.85,138.81,13.99]
[1720720075428,7.2023,138.85,138.81,13.99]
[1720720075831,7.2027,138.84,138.81,13.99]
[1720720076239,7.2027,138.84,138.8,13.99]
[1720720076425,7.2027,138.84,138.81,13.99]
[1720720076626,42.03556515,138.87,138.78,18.0139]
[1720720076949,7.2036,138.82,138.78,18.0139]
[1720720077335,7.2032,138.83,138.78,25.2193]
[1720720077944,7.2021,138.85,138.79,7.2047]
[1720720078143,7.2026,138.84,138.79,7.2047]
[1720720078339,7.2026,138.84,138.78,25.2193]
[1720720078539,7.2036,138.82,138.78,18.0139]
[1720720078736,7.2036,138.82,138.76,35.1665]
[1720720078939,7.2042,138.81,138.76,7.2065]
[1720720080525,18.0055,138.85,138.77,18.015]
[1720720080728,7.2041,138.81,138.77,18.015]
[1720720081146,7.2041,138.81,138.76,7.2066]
[1720720081344,7.2036,138.82,138.77,7.206]
[1720720081543,18.0055,138.85,138.76,18.0166]
[1720720081829,45.34,138.86,138.78,18.0139]
[1720720082037,45.0,138.86,138.78,18.0139]
[1720720082239,24.03206515,138.87,138.78,18.0139]
[1720720082436,20.0,138.86,138.78,18.0139]
[1720720082838,38.0037,138.86,138.78,18.0139]
[1720720083054,7.2038,138.82,138.77,7.2058]
[1720720083750,7.2038,138.82,138.76,35.1664]
[1720720084136,7.2038,138.82,138.77,7.206]
[1720720084841,38.0037,138.86,138.78,7.2053]
[1720720084842,7.2031,138.83,138.78,7.2053]
[1720720085237,7.2036,138.82,138.77,25.2213]
[1720720086159,24.03206515,138.87,138.76,27.96]
[1720720086335,7.2025,138.84,138.79,24.1632]
[1720720086533,7.2024,138.85,138.8,7.2046]
[1720720086739,7.2025,138.84,138.79,31.3681]
[1720720087336,7.51726515,138.87,138.8,16.0909]
[1720720087642,7.51726515,138.87,138.82,7.203]
[1720720087847,7.2006,138.88,138.83,7.203]
[1720720088036,7.2006,138.88,138.82,7.2033]
[1720720088236,7.2001,138.89,138.83,7.203]
[1720720088444,7.2005,138.88,138.83,7.203]
[1720720088647,25.5164193,138.9,138.81,45.9701]
[1720720088846,7.2012,138.87,138.81,45.9701]
[1720720089056,7.2012,138.87,138.81,53.1739]
[1720720089553,7.2012,138.87,138.82,7.2035]
[1720720090954,7.2015,138.86,138.81,53.174]
[1720720091145,25.5164193,138.9,138.81,18.0101]
[1720720091555,7.2011,138.87,138.82,7.2032]
[1720720092557,7.2017,138.86,138.81,18.0101]
[1720720092767,7.2017,138.86,138.81,25.2141]
[1720720093445,7.5177193,138.9,138.83,18.0075]
[1720720093645,7.2007,138.88,138.83,25.2104]
[1720720093847,7.201,138.87,138.82,7.2033]
[1720720094053,7.2015,138.86,138.81,7.2039]
[1720720094464,7.2009,138.88,138.83,7.2027]
[1720720094659,7.2009,138.87,138.82,25.2121]
[1720720095346,7.2005,138.88,138.83,7.2029]
[1720720095747,7.2002,138.89,138.84,7.202]
[1720720095961,7.5177193,138.9,138.85,7.2016]
[1720720096270,7.1999,138.89,138.84,25.2078]
[1720720096565,7.1999,138.89,138.86,13.97]
[1720720096964,14.7171193,138.9,138.86,13.97]
[1720720097461,7.1989,138.91,138.87,15.40618846]
[1720720097670,7.1985,138.92,138.87,15.40618846]
[1720720097861,7.1985,138.92,138.88,13.97]
[1720720098241,7.198,138.93,138.89,13.97]
[1720720098444,21.48909211,138.94,138.89,13.97]
[1720720098848,7.1983,138.93,138.89,13.97]
[1720720099361,7.1983,138.93,138.9,13.97]
[1720720099867,7.1983,138.93,138.91,13.97]
[1720720100658,7.1964,138.96,138.89,6.0409]
[1720720100966,14.7158868,138.97,138.91,15.4291]
[1720720101148,7.5200868,138.97,138.91,15.4291]
[1720720101457,7.1958,138.97,138.92,25.1935]
[1720720101853,7.1963,138.96,138.92,17.9952]
[1720720102044,7.1963,138.96,138.91,15.4291]
[1720720102244,7.1956,138.98,138.92,45.0]
[1720720102548,7.1956,138.98,138.92,52.1982]
[1720720102752,7.1959,138.97,138.91,40.6245]
[1720720103270,7.1964,138.96,138.91,40.6245]
[1720720104851,7.1959,138.97,138.92,7.1981]
[1720720105149,7.1949,138.99,138.93,7.1976]
[1720720105667,14.71470419,139.0,138.93,17.9939]
[1720720105979,7.52030419,139.0,138.96,7.1962]
[1720720106148,7.1943,139.0,138.97,1.43859423]
[1720720106349,6.18018866,139.0,138.96,1.4385943]
[1720720107268,7.1938,139.01,138.96,8.6346943]
[1720720108550,7.194,139.01,138.95,31.7337]
[1720720108772,7.194,139.01,138.96,7.1962]
[1720720109675,7.194,139.01,138.95,31.734]
[1720720111250,7.1942,139.0,138.95,31.734]
[1720720111450,7.1939,139.01,138.95,31.734]
[1720720111867,7.1939,139.01,138.96,7.1962]
[1720720114568,7.52053257,139.03,138.97,7.1957]
[1720720114775,7.52053257,139.03,138.97,17.9893]
[1720720116368,7.1937,139.02,138.97,25.185]
[1720720117161,14.71333257,139.03,138.98,7.1952]
[1720720117770,7.1932,139.02,138.97,25.1849]
[1720720117979,7.1932,139.02,138.97,17.9893]
[1720720118555,7.1937,139.01,138.97,17.9893]
[1720720118761,25.50233257,139.03,138.95,6.5455]
[1720720119070,25.50233257,139.03,138.95,13.7422]
[1720720119071,7.1946,139.0,138.95,13.7422]
[1720720119674,7.1939,139.01,138.96,7.1962]
[1720720120469,7.1942,139.0,138.96,7.1962]
[1720720120884,7.1942,139.0,138.95,13.7422]
[1720720121781,7.1942,139.0,138.95,6.5455]
[1720720121977,7.1948,138.99,138.95,6.5455]
[1720720122154,7.1955,138.98,138.95,6.5455]
[1720720122776,7.1955,138.98,138.95,20.4955]
[1720720123154,7.1949,138.99,138.95,20.4955]
[1720720123655,7.1953,138.98,138.95,20.4955]
[1720720124779,7.1949,138.99,138.95,20.4955]
[1720720125856,7.1949,138.99,138.95,27.6923]
[1720720126051,21.1444,139.0,138.95,27.6923]
[1720720126666,7.1948,138.99,138.95,20.4955]
[1720720126979,13.95,139.0,138.95,20.4955]
[1720720127179,13.95,139.01,138.96,13.95]
[1720720127361,7.1946,139.0,138.96,13.95]
[1720720127554,7.1947,138.99,138.96,13.95]
[1720720128059,7.1942,139.0,138.96,13.95]
[1720720128478,7.1948,138.99,138.96,13.95]
[1720720129363,7.1943,139.0,138.96,13.95]
[1720720129567,7.1953,138.98,138.95,20.4955]
[1720720129975,7.1949,138.99,138.95,20.4955]
[1720720130182,14.717142,139.0,138.96,21.1463]
[1720720130483,14.717142,139.0,138.96,13.95]
[1720720130782,7.1947,138.99,138.96,13.95]
[1720720131382,7.1949,138.99,138.96,13.95]
[1720720132383,14.717042,139.0,138.96,13.95]
[1720720133184,7.522842,139.0,138.96,13.95]
[1720720133386,7.522842,139.0,138.95,20.4955]
[1720720133880,7.1949,138.99,138.95,20.4955]
[1720720134385,20.0,139.02,138.95,20.4955]
[1720720134386,7.1953,138.98,138.95,20.4955]
[1720720134595,7.196,138.97,138.93,13.95]
[1720720134890,7.1965,138.96,138.92,33.0433]
[1720720135094,7.1965,138.96,138.92,46.9933]
[1720720136165,13.95,138.97,138.92,28.9974]
[1720720136371,7.1969,138.95,138.92,28.9974]
[1720720136974,7.1964,138.96,138.92,36.1957]
[1720720137172,21.1458,138.97,138.92,54.1914]
[1720720137883,7.1958,138.97,138.93,13.95]
[1720720138792,6.6958,138.97,138.93,13.95]
[1720720139174,20.6458,138.97,138.92,54.1914]
[1720720140396,21.1453,138.98,138.93,21.1478]
[1720720140693,7.1958,138.97,138.93,21.1478]
[1720720140869,7.1966,138.96,138.92,46.9931]
[1720720141072,13.95,138.97,138.91,6.5004]
[1720720141271,21.1475,138.94,138.89,25.1985]
[1720720141478,21.1475,138.94,138.89,39.1485]
[1720720141683,21.1475,138.94,138.89,25.1985]
[1720720141878,7.198,138.93,138.89,17.9989]
[1720720142193,7.199,138.91,138.86,25.2035]
[1720720142496,7.1995,138.9,138.86,13.95]
[1720720142670,21.15,138.89,138.84,23.2553]
[1720720143474,13.95,138.89,138.85,7.2019]
[1720720143682,21.1499,138.89,138.84,37.2053]
[1720720144196,21.1494,138.9,138.85,7.2017]
[1720720144792,21.1494,138.9,138.85,39.1566]
[1720720144997,7.52909495,138.92,138.87,13.95]
[1720720145196,28.67789495,138.92,138.87,21.1508]
[1720720145495,13.95,138.92,138.87,13.95]
[1720720145689,7.2,138.89,138.86,13.95]
[1720720145890,7.2,138.89,138.85,31.9549]
[1720720146097,7.2,138.89,138.84,23.2553]
[1720720146283,7.2,138.89,138.85,13.95]
[1720720146479,7.2,138.89,138.85,21.1519]
[1720720146679,7.1995,138.9,138.85,21.1519]
[1720720146891,7.2,138.89,138.85,13.95]
[1720720147490,21.1504,138.88,138.84,18.006]
[1720720147689,13.95,138.87,138.83,7.2029]
[1720720148300,21.1504,138.88,138.84,7.2024]
[1720720148801,21.1504,138.88,138.83,21.1528]
[1720720148984,21.1504,138.88,138.83,7.2028]
[1720720149184,21.1504,138.88,138.84,7.2024]
[1720720149389,13.95,138.88,138.84,7.2024]
[1720720149793,13.95,138.89,138.85,7.2018]
[1720720149998,21.1496,138.9,138.85,21.1517]
[1720720150198,7.1999,138.89,138.85,13.95]
[1720720150394,21.1499,138.89,138.84,25.2085]
[1720720150593,7.2006,138.88,138.84,18.0062]
[1720720150780,7.2006,138.88,138.84,25.2086]
[1720720150983,7.2006,138.88,138.84,39.1586]
[1720720151387,7.2006,138.88,138.84,31.9562]
[1720720151591,21.1506,138.88,138.83,21.1528]
[1720720152518,7.2009,138.87,138.82,25.2123]
[1720720152691,13.95,138.86,138.82,25.2123]
[1720720152887,13.95,138.86,138.81,22.4036]
[1720720153092,13.95,138.86,138.81,36.3536]
[1720720153093,21.1517,138.86,138.81,36.3536]
[1720720155121,13.95,138.87,138.82,31.9585]
[1720720155320,13.95,138.87,138.83,7.2027]
[1720720155639,21.1508,138.88,138.83,21.1527]
[1720720155793,7.201,138.87,138.83,13.95]
[1720720155998,13.95,138.87,138.82,31.9585]
[1720720156195,21.1513,138.87,138.82,39.162]
[1720720158317,7.2016,138.86,138.82,13.95]
[1720720158488,7.2021,138.85,138.82,13.95]
[1720720158696,7.2021,138.85,138.79,18.0116]
[1720720158697,13.95,138.85,138.79,18.0116]
[1720720158920,7.2034,138.83,138.79,13.95]
[1720720159492,21.1527,138.84,138.79,13.95]
[1720720159693,21.1527,138.84,138.79,21.155]
[1720720159896,7.2027,138.84,138.8,13.95]
[1720720160121,7.2023,138.85,138.8,21.1545]
[1720720160321,7.2027,138.84,138.8,13.95]
[1720720162201,7.2027,138.84,138.81,13.95]
[1720720162518,13.95,138.87,138.82,13.95]
[1720720162713,13.95,138.87,138.81,18.0098]
[1720720162916,7.2015,138.86,138.83,13.95]
[1720720163097,31.9535,138.87,138.78,33.5711]
[1720720163301,7.53069372,138.89,138.79,13.95]
[1720720163302,7.2036,138.82,138.79,13.95]
[1720720163502,7.2036,138.82,138.78,29.5072]
[1720720164301,7.2036,138.82,138.78,36.7128]
[1720720164717,7.2032,138.83,138.78,36.7128]
[1720720164925,13.95,138.84,138.79,21.1551]
[1720720164926,7.2027,138.84,138.79,21.1551]
[1720720165224,7.2027,138.84,138.8,13.95]
[1720720165817,21.1527,138.84,138.79,13.95]
[1720720166018,7.2027,138.84,138.79,13.95]
[1720720166326,7.2024,138.85,138.81,13.95]
[1720720166716,14.73380345,138.86,138.82,13.95]
[1720720166902,20.0,138.85,138.82,13.95]
[1720720167309,27.202,138.85,138.82,13.95]
[1720720167623,7.2027,138.84,138.81,13.95]
[1720720167822,7.2027,138.84,138.8,13.95]
[1720720168132,7.2035,138.83,138.79,13.95]
[1720720168422,7.2035,138.83,138.78,36.7128]
[1720720169021,7.205,138.8,138.77,6.6496]
[1720720169236,7.2047,138.8,138.77,13.95]
[1720720169430,7.2047,138.8,138.75,7.2069]
[1720720169608,21.1543,138.81,138.76,13.95]
[1720720170111,7.2043,138.81,138.77,13.95]
[1720720170513,21.1537,138.82,138.77,21.1561]
[1720720170710,7.2037,138.82,138.77,7.2061]
[1720720170920,7.2037,138.82,138.75,18.0179]
[1720720170921,15.5168,138.84,138.78,18.014]
[1720720171224,7.2029,138.84,138.79,8.64563276]
[1720720171429,7.2029,138.84,138.8,1.44052896]
[1720720171647,7.203,138.83,138.78,25.2194]
[1720720171929,20.0,138.85,138.78,25.2194]
[1720720171930,20.0,138.85,138.78,18.014]
[1720720172108,7.2031,138.83,138.78,25.2192]
[1720720172311,7.2027,138.84,138.78,25.2192]
[1720720172520,7.2027,138.84,138.79,7.2048]
[1720720173327,20.0,138.85,138.78,18.014]
[1720720173522,7.2036,138.82,138.78,18.014]
[1720720173835,18.0051,138.85,138.75,45.997]
[1720720174002,20.0,138.84,138.76,45.17]
[1720720174202,7.2039,138.82,138.77,7.206]
[1720720174401,7.2042,138.81,138.76,52.2066]
[1720720174829,7.2046,138.8,138.76,45.0]
[1720720175210,7.2042,138.81,138.76,52.2066]
[1720720176208,7.2037,138.82,138.77,7.2061]
[1720720176411,7.2037,138.82,138.77,25.2214]
[1720720176913,7.2044,138.81,138.76,45.0]
[1720720177119,20.0,138.84,138.75,45.0]
[1720720177725,7.2041,138.81,138.76,25.2229]
[1720720178324,7.2036,138.82,138.77,7.206]
[1720720179334,7.2036,138.82,138.76,18.0164]
[1720720179335,7.2032,138.83,138.78,7.2056]
[1720720180540,7.2036,138.82,138.77,7.2059]
[1720720181234,7.2042,138.81,138.76,25.2229]
[1720720182316,7.2042,138.81,138.77,7.2061]
[1720720182731,7.2042,138.81,138.76,25.2229]
[1720720186634,7.2035,138.82,138.77,7.2058]
[1720720187023,7.2037,138.82,138.77,7.2058]
[1720720187638,7.2041,138.81,138.77,7.2058]
[1720720188529,7.2041,138.81,138.76,25.2228]
[1720720189049,7.2047,138.8,138.76,18.0164]
[1720720190830,7.2047,138.8,138.76,25.2229]
[1720720191040,7.2042,138.81,138.76,25.2229]
[1720720192044,7.2047,138.8,138.75,52.207]
[1720720192224,7.2052,138.79,138.75,7.2072]
[1720720192428,7.2047,138.8,138.75,7.2072]
[1720720192654,7.2047,138.8,138.76,13.99]
[1720720193747,7.2047,138.8,138.75,21.1972]
[1720720194351,21.1947,138.8,138.75,7.2072]
[1720720194528,21.1947,138.8,138.75,21.1972]
[1720720194725,13.99,138.79,138.75,7.2072]
[1720720194932,7.2052,138.79,138.74,62.5112]
[1720720195132,21.1957,138.78,138.74,41.3137]
[1720720195433,21.1957,138.78,138.74,18.0192]
[1720720196045,13.99,138.78,138.74,25.2269]
[1720720196640,21.1953,138.79,138.74,25.2269]
[1720720197841,13.99,138.78,138.74,25.2269]
[1720720198035,6.2003,138.8,138.71,18.0224]
[1720720198242,13.99,138.75,138.7,13.99]
[1720720198551,13.99,138.73,138.69,7.2099]
[1720720199535,13.99,138.72,138.69,7.2099]
[1720720199833,13.99,138.72,138.68,18.0261]
[1720720200037,13.99,138.71,138.68,25.2368]
[1720720200863,13.99,138.71,138.68,18.0261]
[1720720201046,13.99,138.7,138.65,18.0299]
[1720720201256,13.99,138.7,138.66,7.2118]
[1720720201553,13.99,138.69,138.66,7.2118]
[1720720202055,13.99,138.68,138.65,18.0299]
[1720720202239,21.2011,138.68,138.63,8.0353755]
[1720720202445,13.99,138.66,138.63,0.8221755]
[1720720202640,7.2113,138.68,138.63,8.0354755]
[1720720202842,14.74399488,138.69,138.63,8.0354755]
[1720720203039,7.2108,138.68,138.63,8.0354755]
[1720720203559,7.2108,138.68,138.63,0.8221755]
[1720720203747,7.53349488,138.69,138.64,7.2124]
[1720720204063,7.53349488,138.69,138.65,7.2123]
[1720720204365,14.74409488,138.69,138.64,25.2448]
[1720720205055,7.2108,138.68,138.64,18.0321]
[1720720205260,7.53349488,138.69,138.64,18.0321]
[1720720205561,7.2097,138.71,138.65,7.2122]